bitfinex/quotes_SOLUSD_20240925
["timestamp","ask_amount","ask_price","bid_price","bid_amount"]
[1727235200264,6.1392,151.99,151.94,20.0]
[1727235200570,12.7186,151.99,151.94,20.0]
[1727235200888,6.1392,151.99,151.94,20.0]
[1727235201269,6.1392,151.99,151.92,0.2467181]
[1727235201483,6.1392,151.99,151.94,10.65836595]
[1727235201775,6.1392,151.99,151.95,1.31607649]
[1727235202475,16.2584,152.01,151.96,10.65836595]
[1727235202661,16.2584,152.01,151.97,1.31591216]
[1727235202988,16.2584,152.01,151.98,10.65836595]
[1727235204370,16.2584,152.01,152.0,10.65836595]
[1727235204573,6.80585945,152.05,152.0,10.65836595]
[1727235204574,16.3775,152.05,152.0,10.65836595]
[1727235206158,16.3775,152.05,152.01,21.31552294]
[1727235206387,16.3775,152.05,152.02,10.65836595]
[1727235207389,16.3775,152.05,152.01,20.0]
[1727235211084,16.3775,152.05,151.94,23.776884]
[1727235211406,16.3775,152.05,151.99,10.65836595]
[1727235212273,16.3775,152.05,152.0,1.31562769]
[1727235212779,16.3775,152.05,151.99,10.65836595]
[1727235213292,16.3775,152.05,152.0,1.31563021]
[1727235213697,16.3775,152.05,152.01,10.65836595]
[1727235213881,16.3775,152.05,152.01,11.97387905]
[1727235215188,16.3775,152.05,152.0,20.0]
[1727235215997,0.81040261,152.04,152.0,20.0]
[1727235216873,16.3775,152.05,152.0,20.0]
[1727235217079,16.3775,152.05,151.97,10.65836595]
[1727235217297,0.81040261,152.04,151.98,20.0]
[1727235217593,16.3775,152.05,151.98,21.31576903]
[1727235217798,16.3775,152.05,151.99,10.65836595]
[1727235218003,16.3775,152.05,151.99,11.97402332]
[1727235218304,16.3775,152.05,151.99,10.65836595]
[1727235221399,16.3775,152.05,151.99,11.97402754]
[1727235230612,16.3775,152.05,151.99,10.65836595]
[1727235233090,16.3775,152.05,152.01,10.65836595]
[1727235233420,16.3775,152.05,152.03,10.65836595]
[1727235233631,6.4915,152.07,152.03,10.65836595]
[1727235234204,6.4915,152.07,152.01,10.65836595]
[1727235237097,6.4915,152.07,152.0,20.0]
[1727235237485,6.5764,152.06,151.99,10.65836595]
[1727235238704,6.4915,152.07,152.0,1.31562278]
[1727235238904,13.0675,152.07,152.0,1.31562278]
[1727235239505,6.4915,152.07,152.0,1.31562278]
[1727235239712,6.5764,152.06,151.99,10.65836595]
[1727235240225,6.0764,152.06,151.99,10.65836595]
[1727235241614,0.81040261,152.05,151.97,10.65836595]
[1727235241822,16.1157,152.04,151.98,20.0]
[1727235242037,0.81040261,152.03,151.98,20.0]
[1727235242319,16.1157,152.04,151.98,20.0]
[1727235245411,16.1157,152.04,151.98,21.31576309]
[1727235246000,16.1157,152.04,151.98,20.0]
[1727235246426,6.5779,152.03,151.98,20.0]
[1727235246620,16.1157,152.04,151.98,20.0]
[1727235246805,16.1157,152.04,151.94,20.0]
[1727235247010,22.693,152.04,151.97,20.0]
[1727235247604,22.693,152.04,151.97,21.31592664]
[1727235248806,22.693,152.04,151.98,10.65836595]
[1727235248807,16.1157,152.04,151.98,10.65836595]
[1727235249612,6.4915,152.07,152.03,10.65836595]
[1727235249923,0.2467181,152.08,152.06,10.65836595]
[1727235252132,0.2467181,152.08,152.04,10.65836595]
[1727235252633,0.2467181,152.08,152.06,10.65836595]
[1727235254925,0.2467181,152.08,152.02,20.0]
[1727235255240,0.2467181,152.08,152.05,10.65836595]
[1727235256915,0.2467181,152.08,152.07,10.65836595]
[1727235257527,0.2467181,152.08,152.05,10.65836595]
[1727235257730,0.3191964,152.12,152.07,54.43524995]
[1727235257933,0.3191964,152.12,152.11,20.0]
[1727235258112,0.3191964,152.12,152.11,21.31452918]
[1727235259120,0.3191964,152.12,152.11,20.0]
[1727235259319,0.3191964,152.12,152.11,21.31453211]
[1727235259533,0.3191964,152.12,152.11,45.09141611]
[1727235262242,0.2467181,152.17,152.13,20.0]
[1727235262413,0.2467181,152.17,152.16,30.65836595]
[1727235263221,0.2467181,152.17,152.16,20.0]
[1727235264046,0.2467181,152.17,152.14,20.0]
[1727235264244,0.2467181,152.17,152.16,20.0]
[1727235264447,0.1074434,152.19,152.18,43.776884]
[1727235264752,0.1074434,152.28,152.21,30.65836595]
[1727235265042,0.1074434,152.28,152.21,31.97192859]
[1727235265345,0.1074434,152.28,152.21,30.65836595]
[1727235266433,0.1074434,152.28,152.21,20.0]
[1727235267036,0.1074434,152.28,152.21,21.3136541]
[1727235267226,0.1074434,152.28,152.21,37.90772643]
[1727235267743,0.1074434,152.28,152.21,36.59407233]
[1727235273028,16.3523,152.24,152.19,20.0]
[1727235273242,16.3523,152.24,152.18,20.0]
[1727235273833,16.3523,152.24,152.17,16.59407233]
[1727235275229,16.3523,152.24,152.18,20.0]
[1727235276848,16.3523,152.24,152.19,1.31390042]
[1727235277050,16.3523,152.24,152.18,20.0]
[1727235277356,16.3523,152.24,152.13,78.86863411]
[1727235277357,22.4641,152.27,152.21,16.59407233]
[1727235277555,22.4641,152.27,152.21,36.59407233]
[1727235278642,22.4641,152.27,152.2,20.0]
[1727235278845,22.4641,152.27,152.2,21.31389194]
[1727235279352,22.4641,152.27,152.2,20.0]
[1727235281235,1.05712071,152.26,152.2,20.0]
[1727235281437,0.2467181,152.26,152.17,16.59407233]
[1727235281756,0.2467181,152.26,152.18,20.0]
[1727235282860,0.2467181,152.26,152.19,1.31394516]
[1727235285768,0.2467181,152.26,152.18,20.0]
[1727235285953,0.2467181,152.26,152.19,1.3138753]
[1727235286340,0.2467181,152.26,152.21,10.62316964]
[1727235286747,0.2467181,152.26,152.21,30.62316964]
[1727235288543,0.3191964,152.22,152.21,20.0]
[1727235289440,0.3191964,152.22,152.19,20.0]
[1727235291244,0.3191964,152.22,152.21,20.0]
[1727235303247,0.3191964,152.22,152.19,20.0]
[1727235303956,0.3191964,152.22,152.1,90.91774139]
[1727235304266,15.5589,152.2,152.13,10.62316964]
[1727235304505,0.81040261,152.19,152.13,10.62316964]
[1727235304856,15.5589,152.2,152.13,10.62316964]
[1727235305167,15.5589,152.2,152.15,10.62316964]
[1727235305367,15.5589,152.2,152.16,20.0]
[1727235305554,15.5589,152.2,152.18,20.0]
[1727235305749,16.36930261,152.2,152.18,20.0]
[1727235306052,15.5589,152.2,152.16,20.0]
[1727235308200,15.5589,152.2,152.11,20.0]
[1727235308201,0.81040261,152.19,152.11,20.0]
[1727235308470,0.81040261,152.19,152.14,10.62316964]
[1727235308653,15.5589,152.2,152.14,10.62316964]
[1727235309674,15.5589,152.2,152.15,20.0]
[1727235312683,0.81040261,152.19,152.12,10.62316964]
[1727235314315,0.81040261,152.19,152.13,20.0]
[1727235315074,21.9611,152.17,152.06,0.2467181]
[1727235315275,24.58728661,152.16,152.06,0.2467181]
[1727235315478,39.335784,152.12,152.06,0.2467181]
[1727235315667,6.4022,152.11,152.06,0.2467181]
[1727235315986,15.5462,152.18,152.09,10.62316964]
[1727235316155,15.5462,152.18,152.06,0.2467181]
[1727235316156,15.5462,152.18,152.14,10.62316964]
[1727235316492,15.5462,152.18,152.16,10.62316964]
[1727235317753,0.81040261,152.17,152.13,20.0]
[1727235318171,15.5462,152.18,152.13,20.0]
[1727235324695,0.81040261,152.17,152.12,20.0]
[1727235325098,15.5462,152.18,152.12,20.0]
[1727235325289,15.5462,152.18,152.14,20.0]
[1727235325588,15.5462,152.18,152.15,10.62316964]
[1727235333297,15.5462,152.18,152.14,20.0]
[1727235341299,15.5462,152.18,152.16,20.0]
[1727235341997,16.5076964,152.22,152.17,11.93749556]
[1727235342192,16.5076964,152.22,152.19,10.62316964]
[1727235345200,0.81040261,152.21,152.12,20.0]
[1727235345501,0.81040261,152.21,152.14,10.62316964]
[1727235345502,23.776884,152.21,152.14,10.62316964]
[1727235345804,23.776884,152.21,152.15,20.0]
[1727235346682,23.776884,152.21,152.14,10.62316964]
[1727235346683,23.776884,152.21,152.17,20.0]
[1727235347704,16.5076964,152.22,152.17,20.0]
[1727235349209,23.776884,152.21,152.12,20.0]
[1727235349509,23.776884,152.21,152.16,20.0]
[1727235350096,30.346684,152.21,152.16,20.0]
[1727235350298,30.346684,152.21,152.14,20.0]
[1727235351099,23.776884,152.21,152.14,20.0]
[1727235352308,30.346784,152.21,152.14,20.0]
[1727235353294,23.776884,152.19,152.14,20.0]
[1727235359742,39.800684,152.17,152.13,20.0]
[1727235360226,16.0238,152.17,152.13,20.0]
[1727235360517,16.0238,152.17,152.15,20.0]
[1727235360696,6.8886964,152.22,152.16,10.62316964]
[1727235360697,16.0238,152.21,152.16,10.62316964]
[1727235360900,16.0238,152.21,152.17,10.62316964]
[1727235361213,16.0238,152.21,152.19,10.62316964]
[1727235361915,16.83420261,152.21,152.18,20.0]
[1727235362117,16.0238,152.21,152.18,20.0]
[1727235363199,16.0238,152.21,152.19,10.62316964]
[1727235363417,0.3191964,152.22,152.2,30.62316964]
[1727235363601,0.3191964,152.22,152.21,30.62316964]
[1727235363922,0.3191964,152.22,152.21,20.0]
[1727235364121,0.3191964,152.22,152.21,30.62316964]
[1727235365417,0.3191964,152.22,152.2,20.0]
[1727235368815,0.3191964,152.22,152.2,10.62316964]
[1727235369015,0.3191964,152.22,152.21,30.62316964]
[1727235373527,0.3191964,152.22,152.17,20.0]
[1727235373728,0.3191964,152.22,152.18,10.62316964]
[1727235373925,0.3191964,152.22,152.13,30.00172975]
[1727235374120,0.3191964,152.22,152.18,10.62316964]
[1727235374635,0.3191964,152.22,152.13,30.00172975]
[1727235374935,0.3191964,152.22,152.19,20.0]
[1727235375634,0.3191964,152.22,152.2,10.62316964]
[1727235375836,0.3191964,152.22,152.21,20.0]
[1727235381138,0.3191964,152.22,152.21,21.31391186]
[1727235381430,0.3191964,152.22,152.21,21.31356689]
[1727235383643,0.3191964,152.22,152.21,31.93673653]
[1727235383841,0.3191964,152.22,152.21,55.71362053]
[1727235385721,0.3191964,152.22,152.21,54.40005364]
[1727235386132,0.3191964,152.22,152.21,55.71341309]
[1727235386512,0.2467181,152.26,152.21,55.71341309]
[1727235386513,0.2467181,152.26,152.22,43.776884]
[1727235386732,0.2467181,152.26,152.25,30.62316964]
[1727235388312,0.2467181,152.26,152.22,20.0]
[1727235388517,0.2467181,152.26,152.23,20.0]
[1727235389421,0.2467181,152.26,152.24,1.31355298]
[1727235389616,6.1423615,152.3,152.25,20.0]
[1727235393054,6.1423615,152.3,152.23,10.62316964]
[1727235393242,6.1423615,152.3,152.24,20.0]
[1727235394843,6.1423615,152.3,152.25,11.93667594]
[1727235395021,6.1423615,152.3,152.26,20.0]
[1727235398929,6.1423615,152.3,152.23,10.62316964]
[1727235399130,6.1423615,152.3,152.24,20.0]
[1727235402054,6.1423615,152.3,152.25,1.31346167]
[1727235402827,6.1423615,152.3,152.23,20.0]
[1727235405053,0.81040261,152.29,152.23,20.0]
[1727235405352,6.1423615,152.3,152.23,20.0]
[1727235407836,24.0960804,152.31,152.25,10.62316964]
[1727235408152,0.3191964,152.31,152.29,10.62316964]
[1727235408328,0.3191964,152.31,152.3,20.0]
[1727235411151,0.3191964,152.31,152.28,20.0]
[1727235411739,0.3191964,152.31,152.26,20.0]
[1727235413243,0.3191964,152.31,152.26,21.3133551]
[1727235413558,0.3191964,152.31,152.27,10.62316964]
[1727235413857,0.3191964,152.31,152.28,21.31320699]
[1727235415347,0.3191964,152.31,152.25,30.62316964]
[1727235418453,0.3191964,152.31,152.26,1.31320972]
[1727235419537,0.3191964,152.31,152.28,20.0]
[1727235419738,0.3191964,152.31,152.29,1.31304492]
[1727235421259,0.3191964,152.31,152.3,20.0]
[1727235422552,0.3191964,152.31,152.28,21.31295137]
[1727235422744,0.3191964,152.31,152.28,20.0]
[1727235423959,0.3191964,152.31,152.29,10.62316964]
[1727235424160,0.3191964,152.31,152.3,20.0]
[1727235425147,0.3191964,152.31,152.3,59.555584]
[1727235426040,0.2467181,152.35,152.33,23.776884]
[1727235426246,0.2467181,152.35,152.34,55.71228893]
[1727235426495,0.2467181,152.35,152.34,54.40005364]
[1727235427340,0.2467181,152.35,152.34,30.62316964]
[1727235430365,0.2467181,152.35,152.31,6.30195126]
[1727235431653,0.2467181,152.35,152.32,20.0]
[1727235431853,0.2467181,152.35,152.31,20.0]
[1727235432080,0.2467181,152.35,152.27,23.776884]
[1727235432260,0.2467181,152.35,152.29,10.62316964]
[1727235432884,0.2467181,152.35,152.31,10.62316964]
[1727235433068,0.2467181,152.35,152.32,1.3127164]
[1727235433668,0.2467181,152.35,152.32,21.3127164]
[1727235434186,0.2467181,152.35,152.34,20.0]
[1727235434795,0.2467181,152.35,152.32,20.0]
[1727235435350,0.2467181,152.35,152.33,1.31258997]
[1727235435555,0.2467181,152.35,152.32,20.0]
[1727235435982,0.2467181,152.35,152.34,20.0]
[1727235436187,0.2467181,152.35,152.32,20.0]
[1727235437290,0.2467181,152.35,152.33,1.31255994]
[1727235437865,0.2467181,152.35,152.34,20.0]
[1727235438978,0.2467181,152.35,152.32,20.0]
[1727235442476,0.2467181,152.35,152.3,20.0]
[1727235444367,0.2467181,152.35,152.29,16.56860002]
[1727235444576,0.2467181,152.35,152.28,5.66510425]
[1727235445172,0.2467181,152.35,152.29,17.88144533]
[1727235445491,0.2467181,152.35,152.29,16.56860002]
[1727235445783,0.2467181,152.35,152.28,5.66510425]
[1727235446786,0.2467181,152.35,152.27,16.56860002]
[1727235447168,0.81040261,152.34,152.28,20.0]
[1727235447399,0.2467181,152.35,152.28,20.0]
[1727235448266,0.2467181,152.35,152.29,1.3129919]
[1727235448489,0.2467181,152.35,152.27,16.56860002]
[1727235449081,6.8106181,152.35,152.25,16.56860002]
[1727235449283,0.81040261,152.34,152.25,16.56860002]
[1727235450389,15.2839,152.33,152.25,16.56860002]
[1727235450589,15.2839,152.33,152.26,20.0]
[1727235450772,0.81040261,152.32,152.26,20.0]
[1727235450981,6.0549,152.31,152.25,20.0]
[1727235451485,0.81040261,152.3,152.25,20.0]
[1727235451789,6.0549,152.31,152.25,20.0]
[1727235456378,6.0549,152.31,152.25,30.61459908]
[1727235458603,6.0549,152.31,152.26,1.31331133]
[1727235459703,6.0549,152.31,152.27,10.61459908]
[1727235459907,6.0549,152.31,152.28,21.31322217]
[1727235460203,6.0549,152.31,152.28,20.0]
[1727235462079,6.0549,152.31,152.25,20.0]
[1727235462279,0.81040261,152.3,152.25,20.0]
[1727235462487,6.0549,152.31,152.25,20.0]
[1727235462708,6.0549,152.31,152.27,20.0]
[1727235463600,15.2839,152.33,152.27,20.0]
[1727235463601,0.2467181,152.35,152.3,10.61459908]
[1727235463904,0.2467181,152.35,152.34,30.61459908]
[1727235465228,0.2467181,152.35,152.25,23.776884]
[1727235465505,15.6691181,152.35,152.31,10.61459908]
[1727235465685,0.2467181,152.35,152.33,10.61459908]
[1727235465889,0.2467181,152.35,152.34,1.31272503]
[1727235466188,0.2467181,152.35,152.34,21.31272503]
[1727235466878,0.2467181,152.35,152.34,20.0]
[1727235469607,0.2467181,152.35,152.32,20.0]
[1727235470289,0.2467181,152.35,152.29,10.61459908]
[1727235470695,0.2467181,152.35,152.3,20.0]
[1727235471502,0.2467181,152.35,152.32,20.0]
[1727235472015,0.2467181,152.44,152.39,23.776884]
[1727235472207,1.81e-05,152.44,152.43,43.776884]
[1727235472392,1.81e-05,152.44,152.43,20.0]
[1727235472812,1.81e-05,152.44,152.42,20.0]
[1727235473108,1.81e-05,152.44,152.43,30.61459908]
[1727235474313,1.81e-05,152.44,152.41,16.54468592]
[1727235474514,1.81e-05,152.44,152.42,21.31172667]
[1727235475596,1.81e-05,152.44,152.42,20.0]
[1727235475795,1.81e-05,152.44,152.4,20.0]
[1727235476292,1.81e-05,152.44,152.38,40.32156992]
[1727235476497,1.81e-05,152.44,152.39,20.0]
[1727235481301,1.81e-05,152.44,152.37,20.0]
[1727235482210,1.81e-05,152.44,152.39,20.0]
[1727235483220,1.81e-05,152.44,152.4,1.31208615]
[1727235483914,1.81e-05,152.44,152.39,20.0]
[1727235484112,1.81e-05,152.44,152.4,1.31185387]
[1727235484818,1.81e-05,152.44,152.39,20.0]
[1727235485729,0.3191964,152.49,152.45,20.0]
[1727235485899,0.3191964,152.49,152.44,16.6245]
[1727235485900,0.3191964,152.58,152.51,20.0]
[1727235486100,0.3191964,152.58,152.54,43.776884]
[1727235486327,0.3191964,152.58,152.54,45.08746011]
[1727235486712,0.3191964,152.58,152.54,43.776884]
[1727235487307,0.0724783,152.57,152.56,20.0]
[1727235487637,0.0724783,152.57,152.56,60.32156992]
[1727235488221,0.0724783,152.57,152.56,36.54468592]
[1727235489361,0.0724783,152.57,152.55,20.0]
[1727235489629,0.0724783,152.57,152.56,1.31056955]
[1727235490134,0.0724783,152.57,152.56,1.31054326]
[1727235493844,0.0724783,152.57,152.52,36.54468592]
[1727235495625,0.0724783,152.57,152.55,20.0]
[1727235498729,0.0724783,152.57,152.53,20.0]
[1727235502722,0.0724783,152.57,152.52,20.0]
[1727235504420,0.0724783,152.57,152.51,7.81627044]
[1727235504615,0.0724783,152.57,152.47,13.94225092]
[1727235504814,0.88288091,152.57,152.47,16.54468592]
[1727235505028,16.2159,152.62,152.47,16.54468592]
[1727235505029,0.0724783,152.66,152.56,31.88248592]
[1727235505272,0.2724131,152.7,152.56,31.88248592]
[1727235505273,0.2724131,152.7,152.64,33.08937184]
[1727235505548,0.2724131,152.7,152.68,16.54468592]
[1727235505913,0.2724131,152.7,152.69,1.30952173]
[1727235506132,0.2724131,152.7,152.68,16.54468592]
[1727235506623,0.2724131,152.7,152.6,5.42482062]
[1727235506624,0.2724131,152.7,152.67,20.0]
[1727235507113,0.2724131,152.7,152.6,5.42482062]
[1727235507314,0.2724131,152.7,152.62,20.0]
[1727235508944,0.2724131,152.7,152.63,16.54468592]
[1727235509128,0.2724131,152.7,152.64,20.0]
[1727235510432,0.2724131,152.7,152.62,26.39563748]
[1727235510918,0.2724131,152.7,152.59,50.17252148]
[1727235511519,6.4256,152.69,152.59,26.39563748]
[1727235512321,6.4256,152.69,152.6,20.0]
[1727235515324,6.4256,152.69,152.62,26.39563748]
[1727235516030,6.4256,152.69,152.59,26.39563748]
[1727235516323,6.4256,152.69,152.55,26.39563748]
[1727235516717,12.9748,152.69,152.55,26.39563748]
[1727235517732,12.9748,152.69,152.56,20.0]
[1727235521946,6.4256,152.69,152.58,50.17252148]
[1727235522146,6.4256,152.69,152.59,20.0]
[1727235524749,6.4256,152.69,152.62,20.0]
[1727235524925,6.4256,152.69,152.63,25.08663053]
[1727235525125,6.4256,152.69,152.62,20.0]
[1727235525323,6.4256,152.69,152.59,20.0]
[1727235525622,6.4256,152.69,152.58,26.39563748]
[1727235525623,6.4256,152.69,152.61,20.0]
[1727235529324,6.4256,152.69,152.59,20.0]
[1727235529530,6.4256,152.69,152.6,1.31009875]
[1727235530031,6.5497,152.68,152.54,54.23293882]
[1727235531629,6.5497,152.68,152.55,20.0]
[1727235531830,6.5497,152.68,152.56,23.776884]
[1727235532240,6.5497,152.68,152.58,6.30330358]
[1727235532476,6.5497,152.68,152.58,22.81224266]
[1727235532859,6.5497,152.68,152.57,20.0]
[1727235533438,6.4256,152.69,152.57,20.0]
[1727235533632,6.5502,152.67,152.57,20.0]
[1727235535447,6.5502,152.67,152.57,20.0]
[1727235536349,6.5502,152.67,152.55,20.0]
[1727235536548,6.4256,152.69,152.55,20.0]
[1727235536853,15.3176,152.65,152.55,20.0]
[1727235537375,6.2356,152.64,152.52,12.76495378]
[1727235537559,6.2356,152.64,152.52,5.91693403]
[1727235538545,6.2356,152.64,152.53,20.0]
[1727235538741,6.5518,152.63,152.53,20.0]
[1727235539752,6.2356,152.64,152.52,5.91693403]
[1727235540057,15.3176,152.6,152.52,5.91693403]
[1727235540743,15.3176,152.6,152.52,0.2724131]
[1727235540744,6.2356,152.59,152.52,0.2724131]
[1727235543332,12.7891,152.59,152.52,0.2724131]
[1727235545553,22.1903,152.58,152.52,0.2724131]
[1727235545859,6.5551,152.56,152.52,0.2724131]
[1727235547160,6.5552,152.55,152.52,0.2724131]
[1727235547562,22.1903,152.54,152.52,0.2724131]
[1727235547737,22.1903,152.54,152.47,0.2724131]
[1727235547738,22.1903,152.54,152.47,0.2744367]
[1727235547944,6.5565,152.52,152.47,0.2744367]
[1727235548165,6.5561,152.53,152.47,0.2744367]
[1727235555569,28.746,152.54,152.47,0.2744367]
[1727235559258,22.1903,152.54,152.47,0.2744367]
[1727235559475,6.5561,152.53,152.47,0.2744367]
[1727235560567,6.5565,152.52,152.47,0.2744367]
[1727235561977,6.5561,152.53,152.47,0.2744367]
[1727235563176,22.1903,152.54,152.47,0.2744367]
[1727235565282,28.7459,152.54,152.47,0.2744367]
[1727235571964,22.1903,152.54,152.47,0.2744367]
[1727235573381,6.5565,152.52,152.47,0.2744367]
[1727235578867,6.5573,152.51,152.47,0.2744367]
[1727235579067,22.1903,152.54,152.47,0.2744367]
[1727235579270,6.5574,152.5,152.47,0.2744367]
[1727235586669,43.496884,152.53,152.47,0.2744367]
[1727235587198,6.5582,152.48,152.47,0.2744367]
[1727235589293,28.3244,152.48,152.47,0.2744367]
[1727235596099,48.0444,152.48,152.47,0.2744367]
[1727235598485,28.3244,152.48,152.47,0.2744367]
[1727235598793,35.188428,152.48,152.47,0.2744367]
[1727235599575,28.3244,152.48,152.47,0.2744367]
[1727235606073,48.0444,152.48,152.47,0.2744367]
[1727235606504,65.263084,152.48,152.44,0.0724783]
[1727235606679,6.5595,152.45,152.44,0.0724783]
[1727235608097,41.4862,152.48,152.41,0.3845758]
[1727235608098,6.5608,152.42,152.41,0.3648714]
[1727235609394,29.2871,152.42,152.41,0.3648714]
[1727235609705,29.2871,152.42,152.38,0.2443544]
[1727235609706,6.5621,152.39,152.38,0.2443544]
[1727235610587,30.338984,152.39,152.38,0.2443544]
[1727235613206,50.338984,152.39,152.38,0.2443544]
[1727235613786,70.058984,152.39,152.38,0.2443544]
[1727235614205,6.5612,152.41,152.38,0.2443544]
[1727235615789,6.5616,152.4,152.38,0.2443544]
[1727235623505,6.5621,152.39,152.38,0.2443544]
[1727235627301,6.5617,152.4,152.38,0.2443544]
[1727235627818,23.776884,152.43,152.38,0.2443544]
[1727235628017,6.5621,152.39,152.38,0.2443544]
[1727235635120,6.5621,152.39,152.33,0.3168327]
[1727235635121,6.5642,152.34,152.33,0.3168327]
[1727235642031,6.5638,152.35,152.33,0.3168327]
[1727235642207,22.1713,152.38,152.33,0.3168327]
[1727235642208,43.776884,152.37,152.33,0.3168327]
[1727235643128,6.5641,152.35,152.33,0.3168327]
[1727235643329,63.496884,152.37,152.33,0.3168327]
[1727235643636,6.5642,152.34,152.33,0.3168327]
[1727235652745,30.341084,152.34,152.33,0.3168327]
[1727235658753,30.341484,152.33,152.29,0.2443544]
[1727235658937,30.341484,152.33,152.25,15.4975]
[1727235658938,6.5651,152.32,152.31,0.1397524]
[1727235662034,26.2851,152.32,152.31,0.1397524]
[1727235662235,30.341984,152.32,152.31,0.1397524]
[1727235663943,6.5651,152.32,152.31,0.1397524]
[1727235668565,50.061984,152.32,152.31,0.1397524]
[1727235668765,6.5666,152.29,152.25,0.3312459]
[1727235671659,6.647,152.3,152.25,0.3312459]
[1727235671869,6.5668,152.28,152.25,0.3312459]
[1727235673471,6.5654,152.32,152.25,0.3312459]
[1727235674757,26.367,152.34,152.25,0.3312459]
[1727235675065,23.776884,152.33,152.25,0.3312459]
[1727235675565,6.566,152.3,152.25,0.3312459]
[1727235677673,6.5664,152.29,152.25,0.3312459]
[1727235678680,6.5668,152.28,152.25,0.3312459]
[1727235681167,20.0,152.31,152.25,0.3312459]
[1727235681365,6.566,152.3,152.25,0.3312459]
[1727235682490,23.0578,152.34,152.25,0.3312459]
[1727235682491,6.5664,152.29,152.25,0.3312459]
[1727235682983,6.566,152.3,152.25,0.3312459]
[1727235683156,20.0,152.33,152.25,0.3312459]
[1727235683356,6.5656,152.31,152.25,0.3312459]
[1727235684564,6.566,152.3,152.25,0.3312459]
[1727235687071,6.5667,152.29,152.25,0.3312459]
[1727235688358,39.72,152.33,152.25,0.3312459]
[1727235688558,6.5656,152.31,152.25,0.3312459]
[1727235689058,6.5661,152.3,152.25,0.3312459]
[1727235694370,43.496884,152.32,152.25,0.3312459]
[1727235694575,6.5666,152.29,152.25,0.3312459]
[1727235694882,43.496884,152.32,152.25,0.3312459]
[1727235695084,6.5669,152.28,152.25,0.3312459]
[1727235695290,6.5677,152.26,152.25,0.3312459]
[1727235696456,6.5673,152.27,152.25,0.3312459]
[1727235699689,6.5677,152.26,152.25,0.3312459]
[1727235700575,30.344584,152.26,152.25,0.3312459]
[1727235703882,50.064584,152.26,152.25,0.3312459]
[1727235704262,23.776884,152.25,152.23,0.1074434]
[1727235704463,6.5685,152.24,152.23,0.1074434]
[1727235704769,30.345384,152.24,152.23,0.1074434]
[1727235712072,6.5694,152.22,152.21,0.2587676]
[1727235712385,30.346284,152.22,152.21,0.2587676]
[1727235713781,30.346284,152.22,152.16,0.3312459]
[1727235713782,6.5715,152.18,152.16,0.3312459]
[1727235713997,63.496884,152.22,152.16,0.3312459]
[1727235713998,6.5715,152.17,152.16,0.3312459]
[1727235714182,6.5711,152.18,152.16,0.3312459]
[1727235717300,6.5715,152.17,152.16,0.3312459]
[1727235719711,30.348384,152.17,152.16,0.3312459]
[1727235720180,6.5715,152.17,152.16,0.3312459]
[1727235721212,6.5715,152.17,152.15,0.4134195]
[1727235722884,6.572,152.16,152.15,0.4134195]
[1727235723784,30.348884,152.16,152.15,0.4134195]
[1727235728610,6.572,152.16,152.15,0.4134195]
[1727235731198,50.348884,152.16,152.15,0.4134195]
[1727235731397,30.348884,152.16,152.15,0.4134195]
[1727235731601,6.572,152.16,152.15,0.4134195]
[1727235736205,6.5725,152.15,152.14,0.5208629]
[1727235737313,6.5716,152.17,152.14,0.5208629]
[1727235737535,23.776884,152.19,152.14,0.5208629]
[1727235737907,6.5716,152.17,152.14,0.5208629]
[1727235742021,6.86774163,152.2,152.14,0.5208629]
[1727235742223,20.0,152.19,152.14,0.5208629]
[1727235742403,6.5712,152.18,152.14,0.5208629]
[1727235745207,20.0,152.19,152.14,0.5208629]
[1727235745525,6.5715,152.18,152.14,0.5208629]
[1727235746801,26.5708,152.19,152.14,0.5208629]
[1727235747605,20.0,152.19,152.14,0.5208629]
[1727235747924,6.5724,152.15,152.14,0.5208629]
[1727235748109,23.776884,152.18,152.14,0.5208629]
[1727235748313,6.5721,152.16,152.14,0.5208629]
[1727235751327,20.0,152.19,152.14,0.5208629]
[1727235751526,6.5711,152.18,152.14,0.5208629]
[1727235751717,20.0,152.18,152.14,0.5208629]